bitfinex-derivatives/quotes_ETHF0:USTF0_20250902
["timestamp","ask_amount","ask_price","bid_price","bid_amount"]
[1756823847631,0.973,4374.0,4373.9,3.4568]
[1756823847831,0.973,4374.0,4373.9,40.8]
[1756823848030,1.16673644,4374.0,4373.9,40.8]
[1756823848634,1.16673644,4374.0,4373.9,41.049]
[1756823848833,0.973,4374.0,4373.9,40.8]
[1756823849126,1.16697238,4374.0,4373.9,40.8]
[1756823849332,0.973,4374.0,4373.9,40.8]
[1756823849725,1.16704412,4374.0,4373.9,40.8]
[1756823850130,0.689,4373.9,4373.8,0.249]
[1756823850333,0.689,4373.9,4373.3,3.2078]
[1756823850633,0.973,4373.5,4373.4,40.8]
[1756823850824,0.689,4373.4,4373.3,3.2078]
[1756823851031,0.88290164,4373.4,4373.3,3.2078]
[1756823851837,0.689,4372.9,4372.5,3.2078]
[1756823852027,0.19390164,4372.8,4372.5,3.2078]
[1756823852334,0.19390164,4372.7,4372.6,40.8]
[1756823852535,0.88290164,4372.7,4372.6,40.8]
[1756823854235,0.19390164,4372.7,4372.6,41.049]
[1756823854430,0.689,4373.3,4372.6,41.049]
[1756823854730,0.19409588,4373.2,4373.1,3.2078]
[1756823854937,0.19409588,4373.2,4373.1,3.4568]
[1756823855128,0.689,4373.8,4373.1,3.4568]
[1756823855328,0.284,4373.5,4373.2,0.249]
[1756823855528,0.88305764,4373.4,4373.3,40.8]
[1756823856633,0.19405764,4373.4,4373.3,40.8]
[1756823856938,0.88305764,4373.4,4373.3,40.8]
[1756823857434,0.19405764,4373.4,4373.3,40.8]
[1756823857934,0.88305764,4373.4,4373.3,40.8]
[1756823858434,0.88307576,4373.4,4373.3,40.8]
[1756823858736,0.284,4373.0,4372.6,3.2078]
[1756823858931,0.7047,4372.8,4372.6,3.2078]
[1756823859235,0.7047,4372.9,4372.6,44.0078]
[1756823859423,0.7047,4372.7,4372.6,3.2078]
[1756823860034,0.2782,4372.5,4371.6,3.2078]
[1756823860232,0.7047,4371.4,4371.1,3.2078]
[1756823860537,0.1940369,4371.3,4370.6,3.2078]
[1756823860731,0.2782,4370.5,4369.1,40.8]
[1756823860926,3.2078,4370.2,4369.1,40.8]
[1756823861134,0.7047,4369.4,4369.1,40.8]
[1756823861341,0.248,4370.0,4369.1,41.4961]
[1756823861636,3.2078,4369.6,4369.2,0.6961]
[1756823861835,3.2078,4369.5,4369.1,41.048]
[1756823862033,0.7047,4369.3,4369.1,41.048]
[1756823862227,0.248,4370.0,4369.1,40.8]
[1756823862228,0.7047,4369.9,4369.1,40.8]
[1756823862429,0.19325522,4369.8,4369.1,40.8]
[1756823862630,0.7047,4369.9,4369.1,40.8]
[1756823862830,0.193259,4369.8,4369.1,40.8]
[1756823863138,0.7047,4369.9,4369.1,40.8]
[1756823863530,3.2078,4370.0,4369.3,0.6961]
[1756823864139,0.7047,4369.9,4369.1,41.048]
[1756823864843,0.248,4369.9,4369.1,40.8]
[1756823865042,3.2078,4369.5,4369.1,40.8]
[1756823865240,0.7047,4369.3,4369.1,40.8]
[1756823865431,3.2078,4369.5,4369.1,41.4961]
[1756823865634,3.2078,4369.5,4369.2,0.6961]
[1756823865842,0.7047,4369.9,4369.2,0.6961]
[1756823866134,0.9527,4369.9,4369.2,0.6961]
[1756823866339,0.7047,4369.9,4369.0,0.248]
[1756823866540,0.248,4369.8,4369.0,0.248]
[1756823866737,0.7047,4369.7,4369.0,0.248]
[1756823866938,3.9125,4369.7,4369.0,0.248]
[1756823867134,3.9125,4369.7,4368.7,0.6961]
[1756823867338,0.7047,4369.7,4368.9,3.2078]
[1756823867541,3.2078,4370.2,4369.1,0.6961]
[1756823867542,0.248,4369.9,4369.1,0.6961]
[1756823867740,0.248,4369.9,4369.4,3.2078]
[1756823868044,3.9125,4370.2,4369.5,0.6961]
[1756823868245,4.1605,4370.2,4369.2,0.248]
[1756823869433,4.1605,4370.2,4369.3,0.6961]
[1756823869633,3.2078,4370.2,4369.3,3.2078]
[1756823869840,0.7047,4371.1,4369.9,3.2078]
[1756823870041,0.248,4371.0,4370.0,0.9441]
[1756823870848,0.7047,4371.1,4370.7,0.6961]
[1756823871140,0.1143,4371.2,4370.6,3.4558]
[1756823871341,0.7047,4371.1,4370.7,0.6961]
[1756823871542,0.1143,4371.2,4370.8,40.8]
[1756823871738,0.1143,4371.2,4371.1,0.6961]
[1756823872347,0.7047,4371.1,4370.8,40.8]
[1756823872536,0.7047,4371.1,4370.8,41.4961]
[1756823872740,0.1143,4371.2,4370.9,0.6961]
[1756823873141,0.1143,4371.2,4370.8,40.8]
[1756823873336,0.819,4371.2,4370.9,0.6961]
[1756823873543,0.1143,4371.2,4370.8,40.8]
[1756823873743,0.1143,4371.2,4370.1,3.2078]
[1756823873744,0.7047,4371.1,4370.1,3.2078]
[1756823873944,0.7047,4370.7,4370.1,3.2078]
[1756823874345,0.9829,4370.5,4370.1,3.2078]
[1756823874542,0.2782,4370.5,4370.1,3.2078]
[1756823874741,3.2078,4370.2,4369.6,40.8]
[1756823874944,0.7047,4370.0,4369.6,40.8]
[1756823875146,3.9125,4369.7,4369.1,0.248]
[1756823875345,3.2078,4369.2,4368.4,0.6961]
[1756823875542,0.7047,4369.1,4368.4,0.6961]
[1756823875743,0.7047,4369.1,4368.5,40.8]
[1756823876046,0.7047,4368.9,4368.5,40.8]
[1756823876241,0.7047,4368.6,4368.5,40.8]
[1756823876853,0.7047,4368.6,4368.0,1.0]
[1756823877053,3.2078,4368.7,4368.0,1.6961]
[1756823877549,0.248,4369.0,4368.0,1.6961]
[1756823877750,3.2078,4368.7,4368.0,1.6961]
[1756823878548,0.248,4368.9,4368.0,1.6961]
[1756823879045,3.3222,4368.8,4368.0,1.6961]
[1756823879648,0.7047,4368.2,4368.0,1.0]
[1756823880046,3.2078,4368.3,4368.0,1.0]
[1756823880352,3.2078,4368.3,4368.1,0.6961]
[1756823880652,4.2749,4368.8,4368.1,0.6961]
[1756823880849,4.2749,4368.8,4368.2,40.8]
[1756823880850,0.1144,4368.8,4368.2,40.8]
[1756823881053,3.2078,4368.7,4368.2,40.8]
[1756823881249,3.2078,4368.7,4368.3,0.6961]
[1756823881447,0.7047,4368.6,4368.2,40.8]
[1756823881646,3.2078,4368.7,4368.0,1.0]
[1756823881848,0.7047,4368.1,4368.0,1.0]
[1756823882142,3.2078,4368.2,4368.0,1.0]
[1756823882456,0.7047,4368.3,4368.0,1.0]
[1756823882650,0.248,4368.4,4368.0,1.0]
[1756823882855,0.248,4368.4,4368.1,40.8]
[1756823883155,3.2078,4368.2,4368.0,1.0]
[1756823883354,0.7047,4368.1,4368.0,1.0]
[1756823884152,0.7047,4367.9,4366.9,0.6961]
[1756823884454,0.248,4368.4,4366.9,0.6961]
[1756823884455,3.9125,4368.4,4367.1,0.6961]
[1756823884658,0.248,4368.3,4367.1,0.6961]
[1756823885047,0.248,4368.3,4367.2,0.6961]
[1756823885243,3.2078,4367.8,4366.8,3.2078]
[1756823885547,0.7047,4367.7,4366.8,3.9039]
[1756823886151,0.7047,4367.2,4366.3,0.6961]
[1756823886355,3.2078,4366.7,4365.8,0.6961]
[1756823886559,0.7047,4366.6,4365.8,0.9441]
[1756823886744,3.2078,4366.7,4365.9,0.6961]
[1756823887055,3.9125,4367.1,4365.9,0.92512999]
[1756823887255,4.1605,4367.1,4365.9,0.6961]
[1756823887453,4.1605,4367.1,4366.1,0.6961]
[1756823887755,0.7047,4366.9,4366.1,0.6961]
[1756823889563,0.7047,4366.9,4366.0,0.248]
[1756823890065,0.7047,4366.9,4366.1,0.7174]
[1756823890267,0.248,4366.8,4366.1,0.7174]
[1756823890469,0.7047,4366.9,4366.1,0.7174]
[1756823890967,0.248,4367.0,4366.3,0.7174]
[1756823891267,3.2078,4367.1,4366.5,0.7174]
[1756823891767,0.7089,4367.0,4366.2,40.8]
[1756823892166,0.7089,4366.5,4366.2,40.8]
[1756823892664,3.2078,4366.6,4366.2,40.8]
[1756823892859,0.7089,4366.5,4366.2,40.8]
[1756823893062,0.7089,4366.4,4366.2,40.8]
[1756823893265,3.2078,4366.6,4366.2,40.8]
[1756823893868,0.9955,4366.5,4366.2,40.8]
[1756823894161,0.248,4366.9,4366.2,41.5174]
[1756823894369,0.7089,4366.5,4366.2,40.8]
[1756823894566,0.9955,4366.5,4365.5,0.7174]
[1756823894764,3.2078,4366.0,4365.5,0.248]
[1756823895060,3.2078,4366.0,4365.6,40.8]
[1756823895265,0.7089,4365.9,4365.6,40.8]
[1756823895467,3.2078,4366.0,4365.6,40.8]
[1756823895765,3.4558,4366.0,4365.6,40.8]
[1756823895954,0.7089,4365.7,4365.6,40.8]
[1756823896356,0.7089,4365.9,4364.5,3.2078]
[1756823896559,3.7424,4366.0,4364.6,0.7174]
[1756823896560,0.7089,4365.4,4364.6,0.7174]
[1756823896763,0.248,4365.7,4364.6,0.47708]
[1756823896966,0.7089,4365.9,4365.1,0.7174]
[1756823897167,0.9569,4365.9,4365.1,0.7174]
[1756823897467,0.7089,4365.9,4365.1,0.7174]
[1756823898068,3.9167,4366.5,4365.4,3.2078]
[1756823898268,4.1647,4366.5,4365.6,0.7174]
[1756823898667,0.1145,4366.4,4365.6,0.7174]
[1756823899260,0.7089,4366.3,4365.6,0.7174]
[1756823899466,0.7089,4365.9,4365.4,0.248]
[1756823899763,3.2078,4366.0,4365.3,0.248]
[1756823899962,3.2078,4366.0,4365.5,0.7174]
[1756823900159,0.1145,4366.4,4365.6,0.41226]
[1756823900365,0.1145,4366.4,4365.8,0.7174]
[1756823901467,0.7089,4366.3,4365.4,3.2078]
[1756823901667,0.7089,4366.3,4365.6,0.7127]
[1756823902972,0.1145,4366.4,4365.7,0.41225]
[1756823903171,0.1145,4366.4,4365.9,3.2078]
[1756823903372,0.1145,4366.4,4365.9,3.4558]
[1756823903568,0.1145,4366.4,4366.0,0.7127]
[1756823903769,0.1145,4366.4,4366.2,0.7127]
[1756823903970,0.1145,4366.4,4366.1,40.8]
[1756823904370,0.1145,4366.4,4366.2,0.7127]
[1756823904664,0.7089,4367.4,4366.4,0.5982]
[1756823905165,0.7089,4367.4,4366.4,3.806]
[1756823905372,3.4944,4367.5,4366.4,3.2078]
[1756823905576,0.7089,4367.4,4366.3,0.248]
[1756823906376,0.7089,4366.9,4366.3,0.248]
[1756823906676,0.9569,4366.9,4366.3,0.248]
[1756823906976,0.7089,4366.9,4366.3,0.248]
[1756823907171,0.2866,4366.5,4366.3,0.248]
[1756823907376,3.2078,4366.4,4366.1,40.8]
[1756823907576,0.7089,4366.2,4366.1,40.8]
[1756823908871,0.7089,4366.3,4365.1,3.2078]
[1756823909073,0.7089,4365.7,4365.2,0.248]
[1756823909270,0.7089,4365.6,4365.3,40.8]
[1756823909475,3.4558,4365.8,4365.3,40.8]
[1756823909868,0.7089,4365.4,4365.3,40.8]
[1756823910172,3.2078,4365.8,4365.3,40.8]
[1756823910380,0.7089,4365.6,4365.3,41.3934]
[1756823910567,0.7089,4365.6,4365.4,0.5934]
[1756823910980,3.2078,4365.8,4365.3,40.8]
[1756823911372,0.7089,4365.6,4365.3,40.8]
[1756823911673,3.2078,4365.8,4364.6,0.5934]
[1756823911873,3.2078,4365.3,4364.4,3.2078]
[1756823912076,0.7089,4365.1,4364.4,3.2078]
[1756823912274,3.2078,4364.6,4364.5,40.8]
[1756823912475,0.7089,4364.4,4363.7,0.248]
[1756823912873,0.7089,4364.4,4363.9,40.8]
[1756823913278,0.9955,4364.0,4363.9,40.8]
[1756823913474,1.2435,4364.0,4363.9,40.8]
[1756823913672,0.9955,4364.0,4363.9,40.8]
[1756823913973,1.2435,4364.0,4363.9,40.8]
[1756823914177,4.76375001,4364.0,4362.8,3.38199806]
[1756823914379,0.7089,4363.4,4362.8,0.17419806]
[1756823914681,0.248,4363.3,4362.9,41.3934]
[1756823914883,0.248,4363.3,4362.9,40.8]
[1756823915180,0.248,4363.3,4362.8,0.17419806]
[1756823915381,0.7089,4363.2,4362.8,0.17419806]
[1756823915581,0.248,4363.3,4362.8,0.17419806]
[1756823915783,0.248,4363.2,4362.8,0.17419806]
[1756823915982,0.9569,4363.4,4362.8,0.76759806]
[1756823916171,0.9569,4363.4,4362.8,0.17419806]
[1756823916977,3.4944,4363.0,4362.8,0.17419806]
[1756823917174,0.9569,4362.9,4362.8,0.17419806]
[1756823917679,0.248,4362.9,4362.3,40.8]
[1756823917880,0.7089,4362.8,4362.3,40.8]
[1756823918185,0.248,4362.7,4362.3,40.8]
[1756823918381,3.4944,4363.0,4362.3,40.8]
[1756823918586,0.248,4362.9,4362.3,40.8]
[1756823918879,0.7089,4362.7,4362.3,41.5174]
[1756823919078,0.6492,4362.9,4362.3,40.8]
[1756823919281,3.857,4362.5,4362.3,40.8]
[1756823919479,0.6492,4362.4,4361.7,0.248]
[1756823919686,0.6492,4362.4,4361.8,0.6881]
[1756823919887,0.248,4362.3,4361.8,0.6881]
[1756823920185,0.248,4362.3,4361.7,0.248]
[1756823920378,0.248,4362.3,4361.7,0.9361]
[1756823920575,0.6492,4362.2,4361.7,0.248]
[1756823920781,0.6492,4361.9,4361.8,40.8]
[1756823920981,0.8972,4361.9,4361.8,40.8]
[1756823921177,0.8972,4361.9,4361.3,0.6881]
[1756823921383,0.248,4361.8,4361.3,0.6881]
[1756823921587,0.248,4361.8,4361.2,0.6881]
[1756823921882,4.1367,4361.5,4360.4,0.6881]
[1756823922376,0.248,4361.4,4360.5,40.8]
[1756823922581,3.857,4361.5,4360.6,0.6881]
[1756823922874,0.248,4361.3,4360.6,0.6881]
[1756823923381,0.6492,4361.2,4360.6,0.6881]
[1756823923888,0.248,4361.3,4360.5,40.8]
[1756823924090,0.6492,4360.9,4360.5,40.8]
[1756823924285,0.6492,4360.7,4359.7,0.9361]
[1756823924484,0.8972,4360.7,4359.7,0.9361]
[1756823924888,0.8972,4360.7,4359.8,40.8]
[1756823925187,0.8972,4360.7,4359.9,0.6881]
[1756823925484,3.2078,4361.0,4360.1,0.6881]
[1756823925890,3.857,4361.0,4360.1,0.6881]
[1756823926293,0.6492,4360.6,4359.8,41.4881]
[1756823926588,4.105,4361.1,4360.1,3.2078]
[1756823926889,4.105,4361.1,4360.2,0.6881]
[1756823927093,4.105,4361.1,4360.3,0.6881]
[1756823927287,3.857,4361.1,4360.3,0.6881]
[1756823927486,4.105,4361.1,4360.3,0.6881]
[1756823928390,0.6492,4361.6,4360.9,3.2078]
[1756823928589,0.6492,4361.6,4361.0,0.6881]
[1756823928789,0.6492,4362.0,4361.0,0.6881]
[1756823929590,0.6492,4362.0,4361.2,0.6881]
[1756823929890,0.6492,4362.6,4361.5,3.2078]
[1756823930091,0.6492,4362.6,4361.6,0.9361]
[1756823930388,3.2078,4362.7,4361.6,0.9361]
[1756823930795,0.6492,4362.6,4361.6,0.9361]
[1756823931091,3.2078,4362.2,4361.7,40.8]
[1756823931586,0.2797,4362.0,4361.7,40.8]
[1756823931782,0.6492,4361.9,4361.0,0.248]
[1756823931987,0.6492,4361.5,4360.6,0.6881]
[1756823932188,0.6492,4361.4,4360.6,0.248]
[1756823932498,0.6492,4361.0,4360.7,40.8]
[1756823932885,3.2078,4361.1,4360.7,40.8]
[1756823933085,0.6492,4361.0,4360.7,40.8]
[1756823933287,0.248,4361.2,4360.7,40.8]
[1756823933493,0.6492,4361.1,4360.7,40.8]
[1756823933694,0.6492,4361.1,4360.8,0.6881]
[1756823933991,3.4558,4361.3,4360.7,40.8]
[1756823934192,0.6492,4361.2,4360.7,40.8]
[1756823934391,3.4558,4361.3,4360.7,40.8]
[1756823934592,0.6492,4361.2,4360.7,40.8]
[1756823934896,0.6492,4361.1,4360.7,40.8]
[1756823935098,0.6492,4361.2,4360.7,40.8]
[1756823935485,3.2078,4361.3,4360.9,0.6881]
[1756823935691,0.2797,4362.5,4360.9,0.6881]
[1756823935692,3.2078,4361.9,4360.9,0.6881]
[1756823935892,0.6492,4361.8,4361.0,0.248]
[1756823936491,0.6492,4361.8,4361.1,0.6881]
[1756823936805,0.6492,4361.4,4360.7,40.8]
[1756823936992,0.8972,4361.4,4360.7,40.8]
[1756823937500,0.8972,4361.4,4360.7,41.4881]
[1756823937995,0.6492,4360.9,4360.7,40.8]
[1756823938189,0.6492,4360.8,4360.7,40.8]
[1756823939288,0.6492,4360.8,4359.7,0.6881]
[1756823939493,0.6492,4359.7,4359.4,0.248]
[1756823939690,0.6492,4359.7,4359.5,40.8]
[1756823939897,0.6492,4359.7,4358.8,0.248]
[1756823940087,0.6492,4359.2,4358.8,0.248]
[1756823940293,0.248,4359.8,4359.0,0.6881]
[1756823940487,3.2078,4359.9,4359.1,0.248]
[1756823940693,0.248,4360.3,4359.2,0.6881]
[1756823941198,0.6492,4360.2,4359.2,0.91747]
[1756823941494,4.105,4360.4,4359.3,0.22937]
[1756823941692,4.105,4360.4,4359.5,0.6881]
[1756823942090,3.4558,4360.4,4359.5,0.9361]
[1756823942290,3.2078,4359.7,4359.2,0.248]
[1756823942501,0.6492,4359.8,4359.2,0.248]
[1756823942694,3.2078,4360.2,4359.3,0.6881]
[1756823942997,3.2078,4360.2,4359.4,0.248]
[1756823943197,0.6492,4360.1,4359.4,0.248]
[1756823943399,0.6492,4359.9,4358.9,40.8]
[1756823943597,0.6492,4359.9,4359.0,0.9361]
[1756823943797,0.6492,4359.9,4359.0,0.6881]
[1756823944000,0.6492,4359.9,4359.1,0.248]
[1756823944602,0.6492,4359.9,4359.0,0.6881]
[1756823944800,3.2078,4359.5,4359.0,0.9361]
[1756823945097,0.6492,4359.3,4358.9,40.8]
[1756823945298,0.6492,4359.4,4358.9,40.8]
[1756823945501,3.4875,4359.5,4358.9,40.8]
[1756823945690,0.6492,4359.4,4358.9,40.8]
[1756823945889,0.6492,4359.3,4358.9,40.8]
[1756823946094,0.8972,4359.4,4358.9,40.8]
[1756823946296,0.6492,4359.4,4358.9,40.8]
[1756823946590,0.6492,4359.8,4359.0,0.6881]
[1756823946801,0.8972,4359.8,4359.0,0.9361]
[1756823947791,0.6492,4359.8,4359.1,0.6881]
[1756823948000,3.4558,4360.1,4359.2,0.6881]
[1756823948302,3.2078,4359.5,4359.0,0.248]
[1756823948493,0.6492,4359.4,4358.9,40.8]
[1756823948694,0.6492,4358.9,4358.0,3.2078]
[1756823948894,3.4875,4359.0,4358.0,3.2078]
[1756823948895,0.6492,4358.7,4358.0,3.2078]
[1756823949296,0.6704,4358.3,4358.1,40.8]
[1756823949593,0.6704,4358.2,4358.1,40.8]
[1756823949996,3.2078,4358.9,4358.1,40.8]
[1756823950192,0.9184,4358.8,4358.1,40.8]
[1756823950395,0.6704,4358.3,4358.1,40.8]
[1756823950602,3.2078,4358.9,4358.1,40.8]
[1756823950902,0.248,4358.8,4358.1,40.8]
[1756823951100,0.248,4358.8,4358.1,41.048]
[1756823951294,3.8782,4358.9,4358.1,41.7086]
[1756823951490,0.248,4358.8,4358.1,41.7086]
[1756823951689,3.8782,4358.9,4358.1,41.7086]
[1756823951889,0.9184,4358.8,4358.1,41.7086]
[1756823952096,3.2078,4358.9,4358.2,0.6606]
[1756823952302,3.2078,4359.0,4358.2,0.6606]
[1756823952490,3.2078,4359.0,4358.4,0.6606]
[1756823952692,3.2078,4359.0,4358.5,0.248]
[1756823952900,0.6704,4358.9,4358.6,0.6606]
[1756823953095,3.8782,4359.5,4358.6,0.6606]
[1756823953298,3.2078,4360.0,4359.1,0.6606]
[1756823953497,0.6704,4359.9,4359.2,0.6606]
[1756823953703,0.6704,4359.7,4358.9,0.9086]
[1756823954105,0.6704,4359.7,4358.9,0.248]
[1756823954305,3.2078,4359.7,4358.5,3.8684]
[1756823954605,0.6704,4359.6,4358.6,0.248]
[1756823955003,0.6704,4359.6,4358.7,0.6606]
[1756823955500,0.6704,4359.6,4358.6,0.248]
[1756823955501,3.2078,4359.7,4358.9,1.07349]
[1756823955706,3.2078,4359.7,4359.1,0.6606]
[1756823955905,3.8782,4359.7,4359.1,0.9076]
[1756823956402,3.8782,4359.7,4358.5,3.2078]
[1756823956403,3.8782,4359.7,4358.6,0.6606]
[1756823956602,3.8782,4359.7,4358.8,0.6606]
[1756823956807,0.247,4360.0,4359.1,0.6606]
[1756823957007,0.247,4360.0,4359.4,0.6606]
[1756823957208,3.2078,4359.8,4359.3,40.8]
[1756823957407,0.6704,4359.7,4359.3,40.8]
[1756823957609,0.6704,4359.5,4359.3,40.8]
[1756823957804,0.9174,4359.7,4359.3,40.8]
[1756823958205,0.6704,4359.4,4359.3,40.8]
[1756823958405,0.6704,4359.4,4358.7,0.247]
[1756823958806,0.247,4359.3,4358.8,40.8]
[1756823959000,0.6704,4359.1,4358.8,40.8]
[1756823959506,0.6704,4359.1,4358.9,0.6606]
[1756823959708,0.6704,4359.4,4358.8,40.8]
[1756823961113,0.6704,4360.0,4358.9,0.6606]
[1756823961312,0.6704,4360.0,4359.1,0.6606]
[1756823961809,3.2078,4360.3,4359.3,0.41285]
[1756823962007,3.2078,4360.3,4359.5,0.6606]
[1756823962209,0.6704,4360.2,4359.5,0.6606]
[1756823962410,0.6704,4360.2,4359.6,0.247]
[1756823962708,0.2688,4359.5,4358.8,40.8]
[1756823962915,3.2078,4359.1,4358.8,40.8]
[1756823963214,0.6704,4358.9,4358.8,40.8]
[1756823964410,0.6704,4358.9,4358.0,0.6606]
[1756823964612,3.2078,4358.6,4358.1,0.247]
[1756823964915,0.6704,4358.9,4358.2,40.8]
[1756823965216,0.6704,4358.4,4358.2,40.8]
[1756823965410,0.6704,4358.3,4358.2,40.8]
[1756823966711,0.247,4358.7,4358.2,40.8]
[1756823966910,0.6704,4358.6,4358.2,41.4606]
[1756823967220,0.6704,4358.6,4358.2,40.8]
[1756823967718,0.247,4358.7,4358.2,40.8]
[1756823967912,0.6704,4358.4,4357.6,0.247]
[1756823968118,0.6704,4357.8,4357.4,0.247]
[1756823968322,3.2078,4357.9,4357.5,40.8]
[1756823968520,0.6704,4357.8,4357.5,40.8]
[1756823969116,0.6704,4357.7,4357.5,40.8]
[1756823969416,0.6704,4358.3,4357.6,0.6606]
[1756823969619,3.2078,4358.5,4357.8,0.6606]
[1756823969917,3.2078,4358.5,4357.9,0.247]
[1756823970614,0.6704,4358.4,4357.9,0.247]
[1756823970814,3.8782,4358.5,4357.9,0.247]
[1756823971220,3.8782,4358.5,4358.0,0.6606]
[1756823971419,3.2078,4358.5,4358.0,0.6606]
[1756823971622,3.2078,4359.0,4358.0,3.2078]
[1756823971828,3.2078,4359.0,4358.5,0.6606]
[1756823972024,3.2078,4359.0,4358.5,0.247]
[1756823972322,0.6704,4359.3,4358.7,1.07352]
[1756823972524,3.4548,4359.7,4358.8,0.247]
[1756823972525,3.2078,4359.0,4358.8,0.247]
[1756823972720,0.6704,4358.9,4358.5,0.247]
[1756823972923,3.8782,4360.0,4358.5,3.4548]
[1756823973119,3.2078,4360.0,4359.8,0.41281]
[1756823973320,0.6704,4360.5,4359.3,1.03216]
[1756823973321,3.2078,4360.5,4359.9,0.9076]
[1756823973620,3.8782,4361.0,4360.1,0.6606]
[1756823973823,3.8782,4361.0,4360.3,0.41276]
[1756823974025,3.8782,4361.0,4360.4,0.247]
[1756823974226,3.2078,4361.0,4360.6,0.6606]
[1756823974430,3.2078,4361.0,4360.7,0.6606]
[1756823974629,3.2078,4361.0,4360.8,0.9076]
[1756823974826,1.07257,4360.9,4360.2,0.6606]
[1756823975027,1.07257,4360.9,4359.7,0.6606]
[1756823975227,0.40217,4360.9,4360.3,40.8]
[1756823975635,3.8782,4360.4,4360.3,40.8]
[1756823976228,7.8782,4360.4,4359.7,0.247]
[1756823976432,0.6704,4359.7,4358.9,3.2078]
[1756823976633,0.6704,4359.7,4359.0,41.047]
[1756823977027,0.6704,4360.1,4359.1,0.6606]
[1756823978233,0.6704,4360.1,4359.2,0.6606]
[1756823978632,3.2078,4360.4,4359.4,0.6606]
[1756823978830,3.2078,4360.4,4359.5,0.247]
[1756823979030,3.2078,4360.4,4359.6,0.6606]
[1756823979531,3.2078,4360.4,4359.6,0.41283]
[1756823979732,3.2078,4360.4,4359.7,0.6314]
[1756823980331,3.2078,4360.4,4359.5,0.247]
[1756823980531,0.653,4360.3,4359.5,0.247]
[1756823981338,0.653,4360.3,4359.6,0.6314]
[1756823981738,0.653,4360.3,4359.5,0.247]
[1756823982732,0.653,4360.3,4359.6,0.6314]
[1756823982936,3.2078,4360.4,4359.6,0.6314]
[1756823983129,3.2078,4360.4,4359.6,0.41283]
[1756823983334,3.2078,4360.4,4359.7,0.41282]
[1756823983535,3.2078,4360.4,4359.8,1.04421]
[1756823983837,3.2078,4360.4,4360.1,1.04419]
[1756823984039,0.40217,4360.9,4360.4,0.6314]
[1756823984341,0.40217,4360.9,4360.3,40.8]
[1756823984342,0.03568388,4360.9,4360.8,1.04412]
[1756823984542,0.03568388,4360.9,4360.8,0.6314]
[1756823984736,0.03568388,4360.9,4360.5,0.247]
[1756823984941,0.653,4360.8,4360.3,40.8]
[1756823985131,3.24348388,4360.9,4360.4,0.247]
[1756823985335,0.653,4360.8,4360.4,0.247]
[1756823986238,3.24348388,4360.9,4360.4,0.247]
[1756823986743,0.2627,4360.5,4360.4,0.247]
[1756823986939,0.9157,4360.5,4360.3,40.8]
[1756823987137,0.653,4360.4,4360.3,40.8]
[1756823987843,3.8608,4360.4,4360.3,40.8]
[1756823988440,7.8608,4360.4,4360.3,40.8]
[1756823988638,3.8608,4360.4,4360.3,40.8]
[1756823989140,3.2078,4360.7,4360.3,41.4314]
[1756823989330,0.68868388,4360.9,4360.3,41.4314]
[1756823989538,3.2078,4360.7,4360.4,0.247]
[1756823989738,0.653,4360.6,4360.4,0.247]
[1756823989938,0.653,4360.8,4360.4,0.247]
[1756823990139,0.03568388,4360.9,4360.4,0.247]
[1756823990539,0.653,4360.8,4360.3,40.8]
[1756823990740,0.03568388,4360.9,4360.4,0.247]
[1756823990940,0.653,4360.8,4360.3,40.8]
[1756823991235,0.653,4360.8,4360.4,0.247]
[1756823992039,0.03568388,4360.9,4360.4,0.247]
[1756823992440,0.653,4360.8,4360.4,0.247]
[1756823992636,0.03568388,4360.9,4360.5,0.6314]
[1756823992838,0.03568388,4360.9,4360.6,0.6314]
[1756823993035,0.68868388,4360.9,4360.7,0.247]
[1756823993236,0.68868388,4360.9,4360.7,0.8784]
[1756823993644,0.68868388,4360.9,4360.7,0.247]
[1756823993843,0.03568388,4360.9,4360.8,0.6314]
[1756823994239,0.03568388,4360.9,4360.8,0.247]
[1756823994441,0.03568388,4360.9,4360.8,0.8784]
[1756823994948,0.03568388,4360.9,4360.4,0.41275]
[1756823995141,0.03568388,4360.9,4360.6,0.6314]
[1756823995344,0.03568388,4360.9,4360.5,0.247]
[1756823996141,3.2078,4360.6,4360.5,0.247]
[1756823996345,0.653,4360.4,4360.3,40.8]
[1756823996548,0.653,4360.4,4359.6,0.247]
[1756823996938,0.2627,4360.5,4359.7,40.8]
[1756823997541,0.653,4360.4,4359.7,40.8]
[1756823999049,0.653,4360.4,4359.8,0.247]
[1756823999954,3.2078,4360.6,4359.8,0.247]
[1756823999955,3.2078,4360.6,4360.0,0.6314]
[1756824000146,0.03568388,4360.9,4360.7,0.41273]
[1756824000342,0.03568388,4360.9,4360.8,0.8784]
[1756824001053,0.03568388,4360.9,4360.8,4.8784]